bitfinex/quotes_ETHUSD_20241207
["timestamp","ask_amount","ask_price","bid_price","bid_amount"]
[1733558042737,0.55,3988.2,3987.5,0.07834426]
[1733558042945,0.55,3988.2,3987.0,4.11263094]
[1733558043272,2.30518,3988.2,3987.1,0.56472821]
[1733558043478,2.30518,3988.2,3987.2,0.07834512]
[1733558044287,2.30518,3988.2,3987.3,0.07834358]
[1733558044433,2.30518,3988.2,3987.4,0.07834358]
[1733558044634,2.30518,3988.2,3987.5,0.07834358]
[1733558044850,2.30518,3988.2,3987.1,0.48638309]
[1733558045057,2.30518,3988.2,3987.2,0.61336671]
[1733558045256,2.30518,3988.2,3987.3,0.07834531]
[1733558045461,2.30518,3988.2,3987.4,0.07834531]
[1733558045775,2.30518,3988.2,3987.5,0.07834531]
[1733558045939,1.75524,3988.1,3987.2,0.5350214]
[1733558046139,0.55,3988.0,3987.3,0.3675409]
[1733558046365,0.55,3988.0,3987.4,0.07834567]
[1733558046875,0.55,3988.0,3987.5,0.07834567]
[1733558047178,0.55,3988.3,3987.6,0.07834567]
[1733558047390,0.55,3988.3,3987.3,0.28919523]
[1733558047391,0.55,3988.3,3987.7,0.07834567]
[1733558047594,0.55,3988.1,3986.9,0.7512]
[1733558047744,0.55,3987.5,3986.5,0.7999]
[1733558047942,0.55,3987.5,3986.6,0.07834937]
[1733558048142,0.55,3987.5,3986.7,0.07834937]
[1733558048356,2.30549,3987.5,3986.8,0.07834937]
[1733558048551,2.30549,3987.5,3986.9,0.07834937]
[1733558048776,2.30549,3987.5,3987.0,0.07834937]
[1733558048983,2.30549,3987.5,3987.1,0.07834937]
[1733558049187,2.30549,3987.5,3987.2,0.07834937]
[1733558049387,2.30549,3987.5,3987.3,0.07834937]
[1733558049683,2.30549,3987.5,3986.5,0.7999]
[1733558049868,2.30549,3987.5,3986.6,0.33394109]
[1733558050041,2.30549,3987.5,3986.7,0.07835309]
[1733558050241,2.30549,3987.5,3986.6,0.255588]
[1733558050242,2.30549,3987.5,3986.8,0.07835309]
[1733558050476,2.30549,3987.5,3986.9,0.07835309]
[1733558050649,2.30549,3987.5,3987.0,0.07835309]
[1733558050850,2.30549,3987.5,3987.1,0.07835309]
[1733558051079,2.30549,3987.5,3987.2,0.07835309]
[1733558051381,2.30549,3987.5,3987.3,0.07835309]
[1733558051596,2.30549,3987.5,3987.4,0.07835309]
[1733558053388,1.75549,3987.5,3987.4,0.07835309]
[1733558054407,2.010379,3987.5,3987.4,0.07835309]
[1733558056308,0.7934,3987.6,3987.4,0.07835309]
[1733558056492,0.8104,3987.9,3987.5,0.07835309]
[1733558056700,2.56572,3987.9,3987.6,0.07835309]
[1733558056872,1.75537,3987.8,3987.0,0.8223]
[1733558057071,1.75537,3987.8,3987.1,0.07835291]
[1733558057402,1.75537,3987.8,3987.0,0.8223]
[1733558057403,1.75537,3987.8,3987.2,0.07835291]
[1733558057566,1.75537,3987.8,3987.3,0.07835291]
[1733558057766,1.75537,3987.8,3987.4,0.07835285]
[1733558057961,1.75537,3987.8,3987.5,0.07835285]
[1733558058165,1.75537,3987.8,3987.6,0.07835285]
[1733558058416,1.75537,3987.8,3987.0,0.8223]
[1733558058592,1.75537,3987.8,3987.1,0.07835176]
[1733558058788,0.8104,3987.9,3987.2,0.07835176]
[1733558058995,0.86587086,3987.8,3987.3,0.07835176]
[1733558059204,0.86587086,3987.8,3987.4,0.07835176]
[1733558059397,0.8104,3987.9,3987.5,0.07835176]
[1733558059592,0.8104,3987.9,3987.6,0.07835176]
[1733558059803,0.8104,3987.9,3987.0,0.8223]
[1733558060325,1.04381795,3988.2,3987.1,0.07835125]
[1733558060524,2.72014986,3988.2,3987.2,0.07835125]
[1733558060840,2.72014986,3988.2,3987.3,0.07835125]
[1733558060841,0.8104,3988.2,3987.3,0.07835125]
[1733558060981,0.8104,3988.2,3987.4,0.07835125]
[1733558061186,0.8104,3988.2,3987.1,1.75564]
[1733558061418,0.8104,3988.2,3987.2,0.36192227]
[1733558061659,0.8104,3988.2,3987.3,0.07834737]
[1733558061960,0.86601461,3988.1,3987.4,0.07834737]
[1733558062121,0.86601461,3988.1,3987.5,0.07834737]
[1733558062316,2.1092934,3988.2,3987.6,0.07834737]
[1733558062543,0.86626415,3988.1,3987.7,0.07834737]
[1733558062729,0.8104,3988.2,3987.8,0.07834737]
[1733558062934,0.8104,3988.2,3987.9,0.07834737]
[1733558063129,0.8104,3988.2,3987.2,0.2835749]
[1733558063130,0.8104,3988.2,3988.0,0.07834737]
[1733558063439,0.8104,3988.2,3988.1,0.07834737]
[1733558063641,1.67691319,3988.2,3988.1,0.07834737]
[1733558064018,1.91033114,3988.2,3987.3,0.8223]
[1733558064214,1.04381795,3988.3,3987.4,0.66449631]
[1733558064426,0.86651627,3988.2,3987.5,0.07834482]
[1733558064631,1.04381795,3988.3,3987.6,0.07834008]
[1733558064855,0.86680366,3988.2,3987.7,0.07834008]
[1733558065158,1.04381795,3988.3,3987.8,0.07834008]
[1733558065457,3.21001895,3988.2,3987.9,0.07834008]
[1733558065620,2.166201,3988.1,3987.9,0.07834008]
[1733558065818,2.166201,3988.1,3988.0,0.07834008]
[1733558065819,2.34318748,3988.1,3988.0,0.07834008]
[1733558066072,0.867154,3988.1,3988.0,0.07834008]
[1733558066214,2.16652353,3988.1,3988.0,0.07834008]
[1733558066421,3.21034148,3988.1,3988.0,0.07834008]
[1733558066838,3.21561356,3988.1,3988.0,0.07834008]
[1733558067243,2.16652353,3988.1,3988.0,0.07834008]
[1733558067471,3.73225046,3988.1,3988.0,0.07834008]
[1733558067744,2.16652353,3988.1,3988.0,0.07834008]
[1733558068253,3.21610191,3988.1,3988.0,0.07834084]
[1733558068472,2.16652353,3988.1,3988.0,0.07834084]
[1733558068647,3.21649984,3988.1,3988.0,0.07834084]
[1733558068842,2.16652353,3988.1,3988.0,0.07834084]
[1733558069746,3.21649984,3988.1,3988.0,0.07834084]
[1733558070739,1.04997631,3988.3,3988.0,0.07834084]
[1733558070945,0.868451,3988.2,3988.1,0.07834084]
[1733558071183,1.04997631,3988.5,3988.1,0.07834084]
[1733558071488,0.86838019,3988.4,3988.2,0.89584084]
[1733558071703,1.04997631,3988.5,3988.3,0.07832954]
[1733558071898,2.17089696,3988.4,3988.2,0.8175]
[1733558072067,1.04997631,3988.5,3988.3,0.07833187]
[1733558072266,0.86825997,3988.4,3988.2,0.8175]
[1733558072471,1.04997631,3988.5,3988.3,0.07833184]
[1733558072666,0.86830028,3988.4,3988.2,0.8175]
[1733558072982,1.04997631,3988.6,3988.3,0.07833175]
[1733558073300,0.86823111,3988.5,3988.4,0.07833175]
[1733558073591,0.86816901,3988.5,3988.4,0.07833175]
[1733558073960,2.17039871,3988.5,3988.4,0.07833175]
[1733558074384,1.67497631,3988.8,3988.4,0.46791493]
[1733558074617,2.17019201,3988.7,3988.5,0.07833175]
[1733558074834,1.67497631,3988.8,3988.6,0.07833175]
[1733558075005,2.1701837,3988.7,3988.2,0.8175]
[1733558075190,1.67497631,3988.8,3988.3,0.07832687]
[1733558075401,1.67497631,3988.8,3988.4,0.07832687]
[1733558075402,2.16997658,3988.7,3988.4,0.07832687]
[1733558075722,1.67497631,3988.8,3988.5,0.07832687]
[1733558075925,0.86800923,3988.7,3988.6,0.07832687]
[1733558076086,3.21999911,3988.7,3988.6,0.07832687]
[1733558076282,4.97494911,3988.7,3988.6,0.07832687]
[1733558076536,6.20726733,3988.7,3987.8,0.8175]
[1733558076831,1.04974471,3988.5,3987.9,0.07833532]
[1733558077013,2.1700228,3988.4,3988.0,0.07833532]
[1733558077337,0.86800923,3988.3,3988.1,0.07833532]
[1733558077487,1.04974471,3988.4,3988.2,0.07833532]
[1733558077686,2.1699727,3988.3,3987.8,0.8175]
[1733558077939,1.04974471,3988.4,3987.9,0.07833564]
[1733558078139,0.86796294,3988.3,3988.0,0.07833564]
[1733558078420,1.04974471,3988.5,3988.1,0.07833411]
[1733558078620,2.16996788,3988.4,3988.2,0.07833411]
[1733558078815,0.86798715,3988.3,3987.8,0.8175]
[1733558078989,1.04974471,3988.4,3987.9,0.07833482]
[1733558079188,0.86796389,3988.3,3988.0,0.07833482]
[1733558079426,1.04974471,3988.5,3988.2,0.8263]
[1733558079718,1.56572693,3988.7,3988.3,0.07833482]
[1733558079719,1.04974471,3988.7,3988.3,0.07833482]
[1733558079892,0.86793674,3988.6,3988.4,0.07833482]
[1733558080222,1.67474471,3988.8,3988.5,0.07833482]
[1733558080223,1.04974471,3988.7,3988.5,0.07833482]
[1733558080383,2.1697175,3988.6,3988.2,0.8263]
[1733558080581,1.04974471,3988.7,3988.3,0.07832803]
[1733558080919,0.86787135,3988.6,3988.4,0.07832803]
[1733558081120,0.625,3988.8,3988.5,0.90462803]
[1733558081328,0.625,3988.8,3988.6,0.07832803]
[1733558081617,0.625,3988.8,3988.7,0.07832803]
[1733558081859,0.625,3988.8,3988.7,0.07832008]
[1733558086777,2.55943,3989.0,3988.7,0.07832008]
[1733558086962,2.55943,3989.0,3988.8,0.07832008]
[1733558087181,2.55943,3989.0,3988.2,0.8263]
[1733558087339,3.86003714,3989.0,3988.3,0.07832607]
[1733558087679,2.55943,3989.0,3988.4,0.07832607]
[1733558087880,2.55943,3989.0,3988.5,0.07832607]
[1733558088029,2.55943,3989.0,3988.6,0.07832607]
[1733558088227,2.55943,3989.0,3988.7,0.07832607]
[1733558088552,2.55943,3989.0,3988.8,0.07832607]
[1733558088721,2.55943,3989.0,3988.2,0.8263]
[1733558088925,0.8046,3989.0,3988.3,0.07832564]
[1733558089239,0.86690427,3988.9,3988.4,0.07832564]
[1733558089456,0.86690427,3988.9,3988.5,0.07832564]
[1733558089621,0.86690427,3988.9,3988.6,0.07832564]
[1733558089827,0.86690427,3988.9,3988.7,0.07832564]
[1733558090027,0.86690427,3988.9,3988.2,0.8263]
[1733558090028,1.75491,3988.8,3988.2,0.8263]
[1733558090252,1.75491,3988.8,3988.3,0.07832815]
[1733558090460,1.75491,3988.8,3988.4,0.07832815]
[1733558090638,1.75491,3988.8,3988.5,0.07832815]
[1733558090843,1.75491,3988.8,3988.6,0.07832815]
[1733558091037,1.75491,3988.8,3988.7,0.07832815]
[1733558091253,3.20693799,3989.0,3988.7,0.07832815]
[1733558091425,3.20693799,3989.0,3988.8,0.07832815]
[1733558091624,1.75486,3988.9,3988.2,0.8263]
[1733558091866,1.75486,3988.9,3988.3,0.07832813]
[1733558092046,1.75486,3988.9,3988.4,0.07832813]
[1733558092248,1.75486,3988.9,3988.5,0.07832813]
[1733558092437,1.75486,3988.9,3988.2,0.8263]
[1733558092438,1.75486,3988.9,3988.6,0.07832813]
[1733558092641,1.04974471,3989.1,3988.7,0.07832813]
[1733558092642,2.80454471,3989.1,3988.7,0.07832813]
[1733558092845,0.86674775,3989.0,3988.8,0.07832813]
[1733558093065,0.86674775,3989.0,3988.6,0.8263]
[1733558093066,0.86674775,3989.0,3988.9,0.07832575]
[1733558093253,2.62156775,3989.0,3987.7,0.8263]
[1733558093464,0.86674775,3988.9,3987.9,0.8263]
[1733558093670,1.75482,3989.0,3988.0,0.07832806]
[1733558093895,1.75482,3989.0,3988.1,0.07832806]
[1733558094190,0.86671039,3988.9,3988.2,0.07832806]
[1733558094498,1.75482,3989.0,3988.3,0.07832806]
[1733558094669,1.75482,3989.0,3988.4,0.07832806]
[1733558094877,1.75482,3989.0,3988.5,0.07832806]
[1733558094878,0.86671024,3988.9,3988.5,0.07832806]
[1733558095079,0.86671024,3988.9,3988.6,0.07832806]
[1733558095263,1.75482,3989.0,3988.7,0.07832806]
[1733558095575,1.75482,3989.0,3988.8,0.07832806]
[1733558095774,0.8667365,3988.9,3988.0,0.02507222]
[1733558095976,0.8667365,3988.9,3988.1,0.29652126]
[1733558096170,0.8667365,3988.9,3988.1,0.37484965]
[1733558096671,0.8667365,3988.9,3988.2,0.07832839]
[1733558096911,1.75482,3989.0,3988.1,0.29652126]
[1733558096912,1.75482,3989.0,3988.3,0.07832839]
[1733558097242,1.75482,3989.0,3988.4,0.07832839]
[1733558097443,0.86685875,3988.9,3988.5,0.07832839]
[1733558097606,0.86685875,3988.9,3988.6,0.07832839]
[1733558097801,0.86685875,3988.9,3988.7,0.07832839]
[1733558098115,0.86685875,3988.9,3988.8,0.07832839]
[1733558098116,2.62174875,3988.9,3988.8,0.07832839]
[1733558098642,0.86685875,3988.9,3988.8,0.07832839]
[1733558099002,1.30016851,3989.0,3988.8,0.07832813]
[1733558099202,1.30016851,3989.0,3988.9,0.07832813]
[1733558099404,2.16718261,3989.0,3988.9,0.07832813]
[1733558099919,0.8670141,3989.0,3988.9,0.07832813]
[1733558100603,0.8670617,3989.0,3988.9,0.07832813]
[1733558101238,0.8670617,3989.0,3988.9,0.07832546]
[1733558103211,2.16817164,3989.0,3988.9,0.07832546]
[1733558103530,0.8670617,3989.0,3988.9,0.07832546]
[1733558103911,0.86743056,3989.0,3988.9,0.07832546]
[1733558104115,2.16857645,3989.0,3988.9,0.07832546]
[1733558104533,2.16857645,3989.0,3988.9,0.845925]
[1733558104868,1.04974471,3989.6,3988.9,0.845925]
[1733558105069,2.16865503,3989.5,3989.0,0.078325]
[1733558105269,1.04974471,3989.6,3989.1,0.078325]
[1733558105583,2.16887198,3989.5,3989.2,0.078325]
[1733558105869,0.86751419,3989.4,3989.3,0.078325]
[1733558106241,2.16904078,3989.4,3989.3,0.078325]
[1733558106432,0.86751419,3989.4,3989.3,0.078325]
[1733558106878,2.16894148,3989.4,3989.3,0.078325]
[1733558107442,0.86751419,3989.4,3989.3,0.078325]
[1733558107643,2.5172187,3989.4,3989.3,0.078325]
[1733558107865,4.36433654,3989.4,3989.3,0.078325]
[1733558108177,4.36433654,3989.4,3989.3,0.07831858]
[1733558108544,4.01603796,3989.4,3989.3,0.07831858]
[1733558109478,4.72136012,3989.4,3989.3,0.07831858]
[1733558109640,6.28708705,3989.4,3989.3,0.07831858]
[1733558109836,4.72136012,3989.4,3989.3,0.07831858]
[1733558110240,6.28708705,3989.4,3989.3,0.07831858]
[1733558111927,7.56031345,3989.4,3989.3,0.07831858]
[1733558112133,8.08222243,3989.4,3989.3,0.07831858]
[1733558112289,1.75469,3989.3,3988.6,0.7676]
[1733558112486,1.04994073,3989.0,3988.7,0.07832234]
[1733558112736,0.86751419,3988.9,3988.8,0.07832234]
[1733558112893,2.16976156,3988.9,3988.8,0.07832234]
[1733558113535,2.17088168,3988.9,3988.8,0.07832234]
[1733558114124,3.22082241,3988.9,3988.8,0.07832234]
[1733558114324,2.17088168,3988.9,3988.8,0.07832234]
[1733558114512,3.22082241,3988.9,3988.8,0.07832234]
[1733558114885,3.22082241,3988.9,3988.8,0.07832066]
[1733558116214,2.17088168,3988.9,3988.8,0.07832066]
[1733558116415,3.22154853,3988.9,3988.8,0.07832066]
[1733558116633,2.17088168,3988.9,3988.8,0.07832066]
[1733558117153,3.22156274,3988.9,3988.8,0.07832066]
[1733558117707,2.17088168,3988.9,3988.8,0.07832066]
[1733558118151,2.17088168,3988.9,3988.4,0.28305866]
[1733558118456,3.22305135,3988.8,3988.4,0.28305866]
[1733558118616,2.17223481,3988.7,3988.4,0.28305866]
[1733558118816,0.86889392,3988.6,3988.4,0.28305866]
[1733558119112,1.05081654,3988.8,3988.4,0.28305866]
[1733558119315,3.22311645,3988.7,3988.4,0.28305866]
[1733558119532,0.86891996,3988.6,3988.4,0.28305866]
[1733558119739,1.05081654,3988.8,3988.4,0.28305866]
[1733558120047,2.17228103,3988.7,3988.4,0.28305866]
[1733558120248,1.05081654,3988.8,3988.4,0.28305866]
[1733558120249,0.86891241,3988.6,3988.4,0.48688553]
[1733558120460,1.05081654,3988.8,3988.4,0.48688553]
[1733558120664,2.17241735,3988.7,3988.4,0.48688553]
[1733558120959,1.05081654,3988.8,3988.4,0.48688553]
[1733558121160,0.86893441,3988.7,3988.4,0.28305866]
[1733558121341,1.05081654,3988.9,3988.4,2.03813866]
[1733558121661,2.17239107,3988.8,3988.4,2.03813866]
[1733558121840,1.05081654,3988.9,3988.4,2.03813866]
[1733558122017,2.17238195,3988.8,3988.5,0.20381387]
[1733558122211,1.05081654,3988.9,3988.5,1.75503]
[1733558122453,2.17231308,3988.8,3988.5,1.75503]
[1733558122625,1.05081654,3988.9,3988.5,1.75503]
[1733558122820,1.05081654,3989.0,3988.4,0.28305866]
[1733558123052,1.05081654,3989.0,3988.3,0.12542922]
[1733558123053,1.05081654,3989.1,3988.7,0.8091]
[1733558123256,2.17231963,3989.0,3988.7,1.065508]
[1733558123463,1.05081654,3989.1,3988.7,1.065508]
[1733558123632,2.17232001,3989.0,3988.7,1.065508]
[1733558123837,0.86892313,3988.9,3988.7,1.065508]
[1733558124033,1.05081654,3989.1,3988.7,2.820438]
[1733558124250,2.17251231,3989.0,3988.7,2.820438]
[1733558124557,1.05081654,3989.1,3988.7,2.820438]
[1733558124858,2.17242888,3989.0,3988.7,2.820438]
[1733558125024,1.05081654,3989.1,3988.7,2.820438]
[1733558125224,2.17271426,3989.0,3988.7,2.820438]
[1733558125424,0.8690857,3988.9,3988.7,2.820438]
[1733558125670,1.05081654,3989.1,3988.7,2.820438]
[1733558125962,2.17264928,3989.0,3988.7,2.820438]
[1733558126267,0.86905971,3988.9,3988.7,2.820438]
[1733558126429,1.05081654,3989.1,3988.8,0.29459301]
[1733558126628,3.22353044,3989.0,3988.8,0.29459301]
[1733558126928,0.86908556,3988.9,3988.8,0.29459301]
[1733558127355,1.05081654,3989.1,3988.8,0.29459301]
[1733558127524,0.86902713,3989.0,3988.7,2.56403]
[1733558127851,0.86903823,3988.9,3988.7,2.56403]
[1733558128055,1.05081654,3989.1,3988.7,2.56403]
[1733558128368,2.1726292,3989.0,3988.7,2.56403]
[1733558128577,0.86905168,3988.9,3988.7,2.56403]
[1733558128859,1.05081654,3989.2,3988.8,0.37749739]
[1733558129062,2.17248796,3989.1,3988.8,0.37749739]
[1733558129233,1.05081654,3989.2,3988.8,0.37749739]
[1733558129436,2.17238653,3989.1,3988.8,0.37749739]
[1733558129640,1.05081654,3989.3,3988.8,0.37749739]
[1733558129849,2.17228523,3989.2,3988.8,0.37749739]
[1733558130168,2.08763591,3989.7,3988.9,0.10337495]
[1733558130169,1.05081654,3989.4,3988.9,0.10337495]
[1733558130363,2.17205537,3989.3,3989.0,0.07830834]
[1733558130525,1.05081654,3989.4,3989.1,0.07830834]
[1733558130757,2.17196817,3989.3,3989.2,0.07830834]
[1733558132357,2.70125641,3989.3,3989.2,0.07830834]
[1733558132660,4.43875957,3989.3,3989.2,0.07830834]
[1733558132998,6.52639548,3989.3,3989.2,0.07830834]
[1733558133994,8.28108548,3989.3,3989.2,0.07830834]
[1733558134505,6.19344957,3989.3,3989.2,0.07830834]
[1733558135603,6.19344957,3989.3,3989.2,0.07832088]
[1733558136209,8.82092722,3989.3,3989.2,0.07832088]
[1733558136370,8.82092722,3989.3,3988.4,0.8068]
[1733558136371,1.75475,3989.2,3988.4,0.8068]
[1733558136575,1.05080877,3988.7,3988.5,0.07832421]
[1733558136926,0.9192064,3988.6,3988.4,0.8068]
[1733558137067,0.87302187,3988.6,3988.5,0.07832461]
[1733558137261,0.9193117,3988.6,3988.5,0.07832461]
[1733558139483,2.22270983,3988.6,3988.5,0.07832461]
[1733558139794,3.2735186,3988.6,3988.5,0.07832461]
[1733558140498,0.9193117,3988.6,3988.5,0.07832461]
[1733558140679,2.22270915,3988.6,3988.5,0.07832461]
[1733558141881,0.9193117,3988.6,3988.5,0.07832461]
[1733558142090,0.91941243,3988.6,3988.5,0.07832461]
[1733558142695,2.22295081,3988.6,3988.5,0.07832461]
[1733558143132,0.05042187,3988.6,3988.5,0.07832461]
[1733558143417,1.05080877,3988.8,3988.5,0.07832461]
[1733558143618,2.17259386,3988.7,3988.6,0.07832461]
[1733558143987,3.22340263,3988.7,3988.6,0.07832461]
[1733558144185,2.17259386,3988.7,3988.6,0.07832461]
[1733558144795,0.86903174,3988.7,3988.6,0.07832461]
[1733558145520,2.17259872,3988.7,3988.6,0.07832272]
[1733558146734,3.22340749,3988.7,3988.6,0.07832272]
[1733558146949,3.22357307,3988.7,3988.6,0.07832272]
[1733558147628,2.1727643,3988.7,3988.6,0.07832272]
[1733558147855,3.22380741,3988.7,3988.6,0.07832272]
[1733558148997,3.22380741,3988.7,3988.1,1.75517]
[1733558149206,1.05104311,3988.7,3988.2,0.07832456]
[1733558149426,0.86909662,3988.6,3988.3,0.07832456]
[1733558149595,1.05104311,3988.7,3988.4,0.07832456]
[1733558149797,0.86909711,3988.6,3988.5,0.07832456]
[1733558151936,0.86910512,3988.6,3988.5,0.07832456]
[1733558152100,2.1728164,3988.6,3988.5,0.07832456]
[1733558152949,0.86910512,3988.6,3988.5,0.07832456]
[1733558153364,2.39881315,3988.9,3988.5,0.07832456]
[1733558153365,1.05104311,3988.8,3988.5,0.07832456]
[1733558153655,0.86913027,3988.7,3988.6,0.07832456]
[1733558154056,2.17282541,3988.7,3988.6,0.07832456]
[1733558154363,0.86913027,3988.7,3988.6,0.07832456]
[1733558155217,2.17290642,3988.7,3988.6,0.07832456]
[1733558155659,3.22407735,3988.7,3988.6,0.07832456]
[1733558156621,1.05117093,3988.7,3988.6,0.07832456]
[1733558156983,1.05117093,3988.7,3988.0,2.84100196]
[1733558156984,3.26958309,3988.7,3988.0,2.84100196]
[1733558157142,1.09663599,3988.7,3988.6,0.07832457]
[1733558157341,3.26964474,3988.7,3988.6,0.07832457]
[1733558158265,2.21849184,3988.7,3988.6,0.07832457]
[1733558158624,3.26964474,3988.7,3988.6,0.07832457]
[1733558158858,2.21849184,3988.7,3988.6,0.07832457]
[1733558159360,0.91468659,3988.7,3988.6,0.07832457]
[1733558159570,0.91468659,3988.7,3988.6,2.09935003]
[1733558159723,0.91461257,3988.7,3988.6,0.34435003]
[1733558159920,0.04548309,3988.7,3988.6,0.34435003]
[1733558160125,1.0511529,3988.9,3988.6,0.34435003]
[1733558160358,0.8691001,3988.8,3988.7,0.07832457]
[1733558160658,0.91465556,3988.8,3988.7,0.07832457]
[1733558161773,0.04555546,3988.8,3988.7,0.07832457]
[1733558162065,1.0511529,3989.1,3988.7,0.07832457]
[1733558162263,0.86903721,3989.0,3988.8,0.07832457]
[1733558162557,0.86903721,3989.0,3988.6,0.26602546]
[1733558162558,0.04426035,3989.0,3988.9,0.07832457]
[1733558162771,1.0511529,3989.4,3988.9,0.07832457]
[1733558162927,2.17226908,3989.3,3989.0,0.07832457]
[1733558163129,0.86890763,3989.2,3989.1,0.07832457]
[1733558163461,0.91177305,3989.2,3989.1,0.07832457]
[1733558163820,0.04286542,3989.2,3989.1,0.07832457]
[1733558164264,1.0511529,3989.4,3989.1,0.07832457]
[1733558164497,0.04286542,3989.2,3989.0,2.58159]
[1733558164768,1.0511529,3989.5,3989.1,0.07830647]
[1733558164920,3.22306338,3989.4,3989.2,0.07830647]
[1733558165126,2.17191048,3989.3,3989.0,0.8268]
[1733558165421,1.0511529,3989.4,3989.1,0.07830876]
[1733558165761,1.0511529,3989.4,3989.0,0.8268]
[1733558165762,2.17185527,3989.3,3989.2,0.07830876]
[1733558166833,2.17179413,3989.3,3989.2,0.07830876]
[1733558167059,3.22294703,3989.3,3989.2,0.07830876]
[1733558167938,2.17179413,3989.3,3989.2,0.07830876]
[1733558168575,0.86874211,3989.3,3989.2,0.07830818]
[1733558169800,0.868526,3989.3,3989.2,0.07830818]
[1733558170490,1.0511529,3989.5,3989.2,0.07830818]
[1733558170692,2.17126092,3989.4,3989.3,0.07830818]
[1733558171668,2.21255333,3989.4,3989.3,0.07830818]
[1733558172042,2.21242322,3989.4,3989.3,0.07830851]
[1733558172671,3.26357612,3989.4,3989.3,0.07830851]
[1733558172977,4.69883466,3989.4,3989.3,0.07830851]
[1733558173164,3.64768176,3989.4,3989.3,0.07830851]
[1733558173496,5.22389491,3989.4,3989.3,0.07830851]
[1733558174055,9.24089791,3989.4,3988.1,0.7752]
[1733558174290,1.05039512,3988.9,3988.2,0.0783218]
[1733558174497,2.17140912,3988.8,3988.3,0.0783218]
[1733558174655,0.86856365,3988.7,3988.4,0.0783218]
[1733558174859,0.04031976,3988.8,3988.5,0.0783218]
[1733558175204,1.05039512,3988.9,3988.6,0.0783218]
[1733558175497,2.1713615,3988.8,3988.7,0.0783218]
[1733558175860,0.86853413,3988.8,3988.7,0.0783218]
[1733558176292,1.05039512,3989.1,3988.7,0.0783218]
[1733558176591,2.17127827,3989.0,3988.8,0.0783218]
[1733558176789,0.86851131,3988.9,3988.3,1.08574196]
[1733558176958,1.05039512,3989.1,3988.4,0.26440993]
[1733558177157,2.17138288,3989.0,3988.5,0.07831573]
[1733558177369,0.86855315,3988.9,3988.6,0.07831573]
[1733558177596,1.05039512,3989.1,3988.7,0.83711573]
[1733558177766,1.05039512,3989.3,3988.8,0.07831573]
[1733558177962,0.86850864,3989.2,3988.9,0.4460965]
[1733558178158,1.05039512,3989.4,3989.0,0.07831573]
[1733558178359,2.17142265,3989.3,3989.1,0.07831573]
[1733558178661,0.86856906,3989.2,3988.9,0.36778077]
[1733558178896,1.05039512,3989.4,3989.0,0.07830924]
[1733558179206,2.17144488,3989.3,3989.1,0.07830924]
[1733558179389,0.86854722,3989.2,3988.9,0.36778077]
[1733558179609,1.05039512,3989.4,3989.0,0.07831067]
[1733558179819,2.17140608,3989.3,3989.1,0.07831067]
[1733558179992,1.05039512,3989.4,3988.9,0.36778077]
[1733558180194,1.05039512,3989.4,3989.0,0.07830942]
[1733558180401,2.17129981,3989.3,3989.1,0.07830937]
[1733558180599,0.86851992,3989.2,3988.9,0.36778077]
[1733558180823,1.05039512,3989.4,3989.0,0.07831061]
[1733558180992,2.17135253,3989.3,3989.1,0.07831061]
[1733558181192,0.86854101,3989.2,3988.9,0.36778077]
[1733558181422,1.57559269,3989.6,3989.0,0.0783107]
[1733558181423,1.05039512,3989.3,3989.0,0.0783107]
[1733558181578,0.86853453,3989.2,3989.1,0.0783107]
[1733558182223,2.17133934,3989.2,3989.1,0.0783107]
[1733558182784,4.02373446,3989.2,3989.1,0.0783107]
[1733558183015,3.70697483,3989.2,3989.1,0.0783107]
[1733558183346,4.75743694,3989.2,3989.1,0.0783107]
[1733558183530,3.70697483,3989.2,3989.1,0.0783107]
[1733558183883,5.44420502,3989.2,3989.1,0.0783107]
[1733558184113,5.44439924,3989.2,3989.1,0.0783107]
[1733558184632,8.28488995,3989.2,3989.1,0.0783107]
[1733558184789,10.3856802,3989.2,3989.1,0.0783107]
[1733558184990,9.29993824,3989.2,3989.1,0.0783107]
[1733558185721,9.29993824,3989.2,3988.0,0.7588]
[1733558185722,1.75483,3989.0,3988.0,0.7588]
[1733558185894,1.05054806,3988.8,3988.1,0.07832372]
[1733558186093,2.17162041,3988.7,3988.2,0.07832372]
[1733558186328,1.05054806,3988.8,3988.3,0.07832372]
[1733558186535,2.171732,3988.7,3988.4,0.07832372]
[1733558186694,0.04022955,3988.7,3988.5,0.07832372]
[1733558187028,0.04022955,3988.7,3987.6,2.04161653]
[1733558187029,0.802,3988.5,3987.2,0.7588]
[1733558187295,1.05083236,3987.7,3987.3,0.07834317]
[1733558187457,1.05083236,3987.7,3987.4,0.07834317]
[1733558187458,4.02461948,3987.6,3987.4,0.07834317]
[1733558187660,2.17178712,3987.5,3986.2,0.7588]
[1733558188000,2.17178712,3987.5,3986.4,1.08574196]
[1733558188001,1.05038516,3987.3,3986.4,1.08574196]
[1733558188208,0.90813774,3987.2,3986.5,0.07835507]
[1733558188386,0.03944143,3987.2,3986.6,0.07835507]
[1733558188565,1.85238516,3987.6,3986.7,0.07835507]
[1733558188755,1.85238516,3987.6,3986.8,0.83715507]
[1733558188961,0.90617464,3987.5,3986.9,0.07834854]
[1733558189274,0.03819549,3987.5,3986.9,0.10342945]
[1733558189461,0.03819549,3987.5,3987.0,0.07834854]
[1733558189666,0.03819549,3987.5,3987.1,0.07834854]
[1733558189917,0.03819549,3987.5,3987.2,0.07834854]
[1733558190072,0.03819549,3987.5,3987.3,0.07834854]
[1733558190278,0.03819549,3987.5,3987.4,0.07834854]
[1733558190997,1.79367549,3987.5,3987.4,0.07834854]
[1733558191169,1.79367549,3987.5,3986.3,1.75598]
[1733558191170,4.32678506,3987.5,3986.3,1.75598]
[1733558191370,2.62290393,3987.4,3986.4,0.83715589]
[1733558191571,0.802,3987.2,3986.5,0.07835589]
[1733558191817,0.03771706,3987.1,3986.6,0.07835589]
[1733558192020,0.03771706,3987.1,3985.2,1.08574196]
[1733558192021,1.75581,3986.8,3986.7,0.07835589]
[1733558192187,2.9048939,3986.8,3986.7,0.07835589]
[1733558192517,2.9048939,3986.8,3985.8,0.7588]
[1733558192716,0.83965967,3986.8,3985.9,0.07836567]
[1733558192919,0.83965967,3986.8,3986.0,0.07836567]
[1733558193088,0.83965967,3986.8,3986.1,0.07836567]
[1733558193279,0.83965967,3986.8,3986.2,0.07836567]
[1733558193475,0.83965967,3986.8,3985.8,2.54009606]
[1733558193476,0.83965967,3986.8,3986.3,0.07836567]
[1733558193705,0.83965967,3986.8,3986.4,0.07836567]
[1733558193885,0.83965967,3986.8,3986.5,0.07836567]
[1733558193886,0.03765967,3986.8,3986.5,0.07836567]
[1733558194094,0.03765967,3986.8,3986.6,0.07836567]
[1733558194278,2.55769,3987.1,3985.9,1.75618]
[1733558194481,0.03695744,3986.7,3986.0,0.329861]